[Event "Titled Tuesday Blitz November 08 Early 2022"]
[White "Jiganchine, Roman"]
[Black "Antonova, Nadezhda"]
[WhiteFideId "2603667"]
[BlackFideId "14700182"]
[WhiteElo "2340"]
[BlackElo "1813"]
[Result "0-1"]
[Round "07"]
[TimeControl "180+1"]
[Date "2022.11.09"]
[WhiteClock "0:00:04"]
[BlackClock "0:00:05"]

1. e4 {[%clk 0:02:59]}  c5 {[%clk 0:02:59]} 2. Nf3 {[%clk 0:02:59]}  d6 {[%clk 0:02:59]} 3. Bb5+ {[%clk 0:02:57]}  Nd7 {[%clk 0:03:00]} 4. a4 {[%clk 0:02:56]}  Nf6 {[%clk 0:03:00]} 5. Nc3 {[%clk 0:02:54]}  a6 {[%clk 0:03:00]} 6. Be2 {[%clk 0:02:53]}  g6 {[%clk 0:03:00]} 7. d4 {[%clk 0:02:44]}  cxd4 {[%clk 0:02:59]} 8. Qxd4 {[%clk 0:02:44]}  Bg7 {[%clk 0:03:00]} 9. e5 {[%clk 0:02:28]}  dxe5 {[%clk 0:02:59]} 10. Nxe5 {[%clk 0:02:27]}  O-O {[%clk 0:02:56]} 11. Nxd7 {[%clk 0:02:20]}  Bxd7 {[%clk 0:02:56]} 12. O-O {[%clk 0:02:16]}  Bc6 {[%clk 0:02:49]} 13. Qh4 {[%clk 0:02:12]}  Re8 {[%clk 0:02:44]} 14. Bh6 {[%clk 0:02:11]}  Bh8 {[%clk 0:02:44]} 15. a5 {[%clk 0:02:07]}  Qc7 {[%clk 0:02:21]} 16. Rfe1 {[%clk 0:02:00]}  Rad8 {[%clk 0:02:17]} 17. Qb4 {[%clk 0:01:50]}  Nd5 {[%clk 0:02:12]} 18. Nxd5 {[%clk 0:01:45]}  Bxd5 {[%clk 0:02:01]} 19. c3 {[%clk 0:01:35]}  Bc6 {[%clk 0:01:50]} 20. Bf4 {[%clk 0:01:31]}  e5 {[%clk 0:01:50]} 21. Be3 {[%clk 0:01:31]}  Qe7 {[%clk 0:01:46]} 22. Qxe7 {[%clk 0:01:21]}  Rxe7 {[%clk 0:01:46]} 23. Bg5 {[%clk 0:01:20]}  f6 {[%clk 0:01:45]} 24. Bc4+ {[%clk 0:01:18]}  Kf8 {[%clk 0:01:38]} 25. Be3 {[%clk 0:01:16]}  Red7 {[%clk 0:01:27]} 26. Bc5+ {[%clk 0:01:07]}  Kg7 {[%clk 0:01:26]} 27. Bb6 {[%clk 0:01:05]}  Re8 {[%clk 0:01:20]} 28. Rad1 {[%clk 0:01:02]}  Ree7 {[%clk 0:01:06]} 29. Bc5 {[%clk 0:00:58]}  Rxd1 {[%clk 0:01:04]} 30. Rxd1 {[%clk 0:00:57]}  Rd7 {[%clk 0:01:05]} 31. Rxd7+ {[%clk 0:00:48]}  Bxd7 {[%clk 0:01:06]} 32. Bd5 {[%clk 0:00:41]}  Bc8 {[%clk 0:01:03]} 33. f3 {[%clk 0:00:39]}  f5 {[%clk 0:01:03]} 34. Kf2 {[%clk 0:00:38]}  Kf6 {[%clk 0:01:03]} 35. Ke3 {[%clk 0:00:37]}  Bg7 {[%clk 0:01:03]} 36. b4 {[%clk 0:00:33]}  Bh6+ {[%clk 0:01:03]} 37. Ke2 {[%clk 0:00:32]}  Bc1 {[%clk 0:00:55]} 38. Kd1 {[%clk 0:00:30]}  Bh6 {[%clk 0:00:49]} 39. c4 {[%clk 0:00:29]}  Bg5 {[%clk 0:00:29]} 40. b5 {[%clk 0:00:29]}  h5 {[%clk 0:00:19]} 41. Bd6 {[%clk 0:00:23]}  h4 {[%clk 0:00:16]} 42. h3 {[%clk 0:00:20]}  Bf4 {[%clk 0:00:15]} 43. bxa6 {[%clk 0:00:14]}  bxa6 {[%clk 0:00:15]} 44. c5 {[%clk 0:00:14]}  g5 {[%clk 0:00:15]} 45. c6 {[%clk 0:00:13]}  g4 {[%clk 0:00:15]} 46. hxg4 {[%clk 0:00:12]}  fxg4 {[%clk 0:00:16]} 47. Ke2 {[%clk 0:00:12]}  h3 {[%clk 0:00:16]} 48. gxh3 {[%clk 0:00:09]}  gxh3 {[%clk 0:00:16]} 49. Kf1 {[%clk 0:00:10]}  Kg5 {[%clk 0:00:13]} 50. Be7+ {[%clk 0:00:08]}  Kf5 {[%clk 0:00:13]} 51. Bd6 {[%clk 0:00:08]}  Kg5 {[%clk 0:00:11]} 52. Bf7 {[%clk 0:00:07]}  Kh4 {[%clk 0:00:07]} 53. Kg1 {[%clk 0:00:05]}  Kg3 {[%clk 0:00:08]} 54. Be8 {[%clk 0:00:04]}  h2+ {[%clk 0:00:05]} 55. Kh1 {[%clk 0:00:04]}  Bh3 {[%clk 0:00:05]} 0-1


[Site "https://www.chess.com"]

[Event "Titled Tuesday Blitz November 08 Early 2022"]
[White "Jodorcovsky Werjivker, Paulo"]
[Black "Cabezas Solano, David Alejandro"]
[WhiteFideId "3700305"]
[BlackFideId "6507522"]
[WhiteElo "2120"]
[BlackElo "2035"]
[Result "0-1"]
[Round "07"]
[TimeControl "180+1"]
[Date "2022.11.09"]
[WhiteClock "0:00:24"]
[BlackClock "0:01:55"]

1. e4 {[%clk 0:03:00]}  c5 {[%clk 0:02:59]} 2. Nc3 {[%clk 0:03:00]}  Nc6 {[%clk 0:02:58]} 3. Bb5 {[%clk 0:03:00]}  Nd4 {[%clk 0:02:58]} 4. Bc4 {[%clk 0:03:01]}  g6 {[%clk 0:02:56]} 5. Nge2 {[%clk 0:03:00]}  Bg7 {[%clk 0:02:56]} 6. Nxd4 {[%clk 0:02:59]}  cxd4 {[%clk 0:02:55]} 7. Qf3 {[%clk 0:02:59]}  e6 {[%clk 0:02:44]} 8. Nb5 {[%clk 0:02:59]}  d6 {[%clk 0:02:39]} 9. Qa3 {[%clk 0:02:56]}  Ke7 {[%clk 0:02:30]} 10. f4 {[%clk 0:02:08]}  a6 {[%clk 0:02:27]} 11. Bd3 {[%clk 0:01:30]}  Rb8 {[%clk 0:02:13]} 12. Na7 {[%clk 0:01:25]}  Bd7 {[%clk 0:02:10]} 13. e5 {[%clk 0:01:24]}  Qb6 {[%clk 0:02:09]} 14. Qxd6+ {[%clk 0:00:37]}  Qxd6 {[%clk 0:02:09]} 15. exd6+ {[%clk 0:00:38]}  Kxd6 {[%clk 0:02:09]} 16. b4 {[%clk 0:00:28]}  Ra8 {[%clk 0:02:00]} 17. Ba3 {[%clk 0:00:24]}  b5 {[%clk 0:01:55]} 0-1


[Site "https://www.chess.com"]

[Event "Titled Tuesday Blitz November 08 Early 2022"]
[White "Johnson, Ben"]
[Black "Fajdetic, Hrvoje"]
[WhiteFideId "2010917"]
[BlackFideId "14501945"]
[WhiteElo "2133"]
[BlackElo "2172"]
[Result "1-0"]
[Round "07"]
[TimeControl "180+1"]
[Date "2022.11.09"]
[WhiteClock "0:00:06"]
[BlackClock "0:00:02"]

1. Nf3 {[%clk 0:03:00]}  f5 {[%clk 0:01:06]} 2. d4 {[%clk 0:02:58]}  Nf6 {[%clk 0:01:07]} 3. g3 {[%clk 0:02:55]}  e6 {[%clk 0:01:07]} 4. Bg2 {[%clk 0:02:56]}  Be7 {[%clk 0:01:08]} 5. O-O {[%clk 0:02:56]}  O-O {[%clk 0:01:07]} 6. c4 {[%clk 0:02:54]}  d6 {[%clk 0:01:08]} 7. Nc3 {[%clk 0:02:53]}  Ne4 {[%clk 0:01:08]} 8. Qc2 {[%clk 0:02:49]}  Nxc3 {[%clk 0:01:08]} 9. bxc3 {[%clk 0:02:44]}  Bf6 {[%clk 0:01:09]} 10. e4 {[%clk 0:02:38]}  e5 {[%clk 0:01:07]} 11. exf5 {[%clk 0:02:32]}  Nc6 {[%clk 0:01:07]} 12. d5 {[%clk 0:02:08]}  Na5 {[%clk 0:01:04]} 13. Qe4 {[%clk 0:01:46]}  b6 {[%clk 0:01:05]} 14. g4 {[%clk 0:01:44]}  Ba6 {[%clk 0:01:06]} 15. Nd2 {[%clk 0:01:43]}  Bg5 {[%clk 0:01:01]} 16. Nb3 {[%clk 0:01:19]}  Nxc4 {[%clk 0:00:58]} 17. Rd1 {[%clk 0:01:05]}  Bxc1 {[%clk 0:00:57]} 18. Raxc1 {[%clk 0:01:03]}  Qh4 {[%clk 0:00:53]} 19. Bf1 {[%clk 0:00:59]}  b5 {[%clk 0:00:52]} 20. Bxc4 {[%clk 0:00:55]}  bxc4 {[%clk 0:00:52]} 21. Nd2 {[%clk 0:00:56]}  h5 {[%clk 0:00:35]} 22. f3 {[%clk 0:00:47]}  g6 {[%clk 0:00:30]} 23. fxg6 {[%clk 0:00:39]}  Rf4 {[%clk 0:00:27]} 24. Qe1 {[%clk 0:00:36]}  Qxe1+ {[%clk 0:00:24]} 25. Rxe1 {[%clk 0:00:37]}  hxg4 {[%clk 0:00:24]} 26. Kf2 {[%clk 0:00:31]}  Kg7 {[%clk 0:00:15]} 27. Re4 {[%clk 0:00:27]}  Rh8 {[%clk 0:00:11]} 28. Kg3 {[%clk 0:00:24]}  gxf3 {[%clk 0:00:09]} 29. Rxf4 {[%clk 0:00:20]}  exf4+ {[%clk 0:00:09]} 30. Kxf4 {[%clk 0:00:21]}  Rh3 {[%clk 0:00:09]} 31. Nxf3 {[%clk 0:00:20]}  Kxg6 {[%clk 0:00:08]} 32. Rg1+ {[%clk 0:00:20]}  Kf6 {[%clk 0:00:08]} 33. Rg8 {[%clk 0:00:16]}  Bb7 {[%clk 0:00:08]} 34. Rf8+ {[%clk 0:00:14]}  Ke7 {[%clk 0:00:07]} 35. Rf5 {[%clk 0:00:04]}  c6 {[%clk 0:00:05]} 36. Kg4 {[%clk 0:00:02]}  Bc8 {[%clk 0:00:04]} 37. Kxh3 {[%clk 0:00:03]}  Bxf5+ {[%clk 0:00:03]} 38. Kh4 {[%clk 0:00:03]}  cxd5 {[%clk 0:00:04]} 39. Kg5 {[%clk 0:00:04]}  Be4 {[%clk 0:00:04]} 40. Nd4 {[%clk 0:00:03]}  Kd7 {[%clk 0:00:05]} 41. h4 {[%clk 0:00:03]}  Kc7 {[%clk 0:00:05]} 42. h5 {[%clk 0:00:04]}  Kb6 {[%clk 0:00:06]} 43. h6 {[%clk 0:00:04]}  Ka5 {[%clk 0:00:06]} 44. Nf5 {[%clk 0:00:03]}  Bxf5 {[%clk 0:00:06]} 45. Kxf5 {[%clk 0:00:04]}  d4 {[%clk 0:00:07]} 46. h7 {[%clk 0:00:05]}  dxc3 {[%clk 0:00:06]} 47. h8=Q {[%clk 0:00:05]}  Kb4 {[%clk 0:00:06]} 48. Qb8+ {[%clk 0:00:05]}  Kc5 {[%clk 0:00:06]} 49. Qb1 {[%clk 0:00:05]}  Kd4 {[%clk 0:00:06]} 50. Qc2 {[%clk 0:00:06]}  d5 {[%clk 0:00:06]} 51. Ke6 {[%clk 0:00:06]}  a5 {[%clk 0:00:05]} 52. Kd6 {[%clk 0:00:06]}  a4 {[%clk 0:00:03]} 53. a3 {[%clk 0:00:06]}  Ke3 {[%clk 0:00:02]} 54. Qxc3+ {[%clk 0:00:06]} 1-0


[Site "https://www.chess.com"]

[Event "Titled Tuesday Blitz November 08 Early 2022"]
[White "Joubert, Dantelle"]
[Black "Aqib Javaid Butt"]
[WhiteFideId "14310813"]
[BlackFideId "7801262"]
[WhiteElo "1507"]
[BlackElo "1659"]
[Result "0-1"]
[Round "07"]
[TimeControl "180+1"]
[Date "2022.11.09"]
[WhiteClock "0:00:39"]
[BlackClock "0:00:22"]

1. d4 {[%clk 0:03:00]}  Nf6 {[%clk 0:02:55]} 2. c4 {[%clk 0:03:00]}  c6 {[%clk 0:02:54]} 3. Nc3 {[%clk 0:03:00]}  d5 {[%clk 0:02:55]} 4. e3 {[%clk 0:02:59]}  e6 {[%clk 0:02:53]} 5. Nf3 {[%clk 0:02:59]}  Bb4 {[%clk 0:02:52]} 6. Qb3 {[%clk 0:02:54]}  Bxc3+ {[%clk 0:02:51]} 7. Qxc3 {[%clk 0:02:53]}  Ne4 {[%clk 0:02:52]} 8. Qc2 {[%clk 0:02:52]}  O-O {[%clk 0:02:53]} 9. Bd3 {[%clk 0:02:51]}  f5 {[%clk 0:02:52]} 10. O-O {[%clk 0:02:47]}  Nd7 {[%clk 0:02:51]} 11. Ne5 {[%clk 0:02:39]}  Nxe5 {[%clk 0:02:51]} 12. dxe5 {[%clk 0:02:38]}  Qh4 {[%clk 0:02:40]} 13. b3 {[%clk 0:02:30]}  Bd7 {[%clk 0:02:34]} 14. Ba3 {[%clk 0:02:25]}  Rf7 {[%clk 0:02:31]} 15. f3 {[%clk 0:02:18]}  Ng5 {[%clk 0:02:30]} 16. cxd5 {[%clk 0:02:08]}  cxd5 {[%clk 0:02:25]} 17. Rac1 {[%clk 0:02:07]}  f4 {[%clk 0:02:09]} 18. e4 {[%clk 0:01:53]}  dxe4 {[%clk 0:02:03]} 19. Bxe4 {[%clk 0:01:53]}  Nxe4 {[%clk 0:02:00]} 20. Qxe4 {[%clk 0:01:53]}  Bc6 {[%clk 0:02:00]} 21. Qe2 {[%clk 0:01:48]}  Rd7 {[%clk 0:01:47]} 22. Rfd1 {[%clk 0:01:47]}  Rad8 {[%clk 0:01:39]} 23. Bd6 {[%clk 0:01:46]}  Bd5 {[%clk 0:01:29]} 24. Rc3 {[%clk 0:01:39]}  g5 {[%clk 0:01:21]} 25. Rdc1 {[%clk 0:01:37]}  Qh5 {[%clk 0:01:19]} 26. b4 {[%clk 0:01:33]}  Qf7 {[%clk 0:01:10]} 27. a4 {[%clk 0:01:32]}  Qf5 {[%clk 0:01:10]} 28. a5 {[%clk 0:01:23]}  a6 {[%clk 0:01:03]} 29. Rc7 {[%clk 0:01:18]}  Qf7 {[%clk 0:01:00]} 30. R7c3 {[%clk 0:01:16]}  h5 {[%clk 0:00:57]} 31. b5 {[%clk 0:01:15]}  axb5 {[%clk 0:00:54]} 32. Qxb5 {[%clk 0:01:15]}  Kh7 {[%clk 0:00:54]} 33. Qb6 {[%clk 0:01:10]}  Kh6 {[%clk 0:00:50]} 34. Rc7 {[%clk 0:01:10]}  g4 {[%clk 0:00:48]} 35. Rxd7 {[%clk 0:01:08]}  Rxd7 {[%clk 0:00:46]} 36. Rc8 {[%clk 0:01:08]}  gxf3 {[%clk 0:00:42]} 37. Qb1 {[%clk 0:00:58]}  Qg7 {[%clk 0:00:36]} 38. Qc2 {[%clk 0:00:54]}  Qxg2+ {[%clk 0:00:35]} 39. Qxg2 {[%clk 0:00:54]}  fxg2 {[%clk 0:00:36]} 40. Rf8 {[%clk 0:00:51]}  f3 {[%clk 0:00:35]} 41. Kf2 {[%clk 0:00:51]}  Rg7 {[%clk 0:00:34]} 42. Kg1 {[%clk 0:00:50]}  Rg4 {[%clk 0:00:30]} 43. Bc5 {[%clk 0:00:49]}  Rc4 {[%clk 0:00:29]} 44. Be3+ {[%clk 0:00:46]}  Kg7 {[%clk 0:00:26]} 45. Rf6 {[%clk 0:00:43]}  Ra4 {[%clk 0:00:24]} 46. h4 {[%clk 0:00:43]}  Ra1+ {[%clk 0:00:24]} 47. Kh2 {[%clk 0:00:43]}  Rh1+ {[%clk 0:00:24]} 48. Kg3 {[%clk 0:00:42]}  g1=Q+ {[%clk 0:00:24]} 49. Bxg1 {[%clk 0:00:42]}  Rxg1+ {[%clk 0:00:25]} 50. Kf2 {[%clk 0:00:43]}  Rg2+ {[%clk 0:00:25]} 51. Ke3 {[%clk 0:00:43]}  Re2+ {[%clk 0:00:25]} 52. Kd4 {[%clk 0:00:42]}  f2 {[%clk 0:00:23]} 53. Kd3 {[%clk 0:00:42]}  Ra2 {[%clk 0:00:23]} 54. Rf4 {[%clk 0:00:39]}  Bg2 {[%clk 0:00:22]} 0-1


[Site "https://www.chess.com"]

[Event "Titled Tuesday Blitz November 08 Early 2022"]
[White "Kodinets, Konstantin L."]
[Black "Prydun, Andriy"]
[WhiteFideId "4122011"]
[BlackFideId "14145898"]
[WhiteElo "2447"]
[BlackElo "2163"]
[Result "1/2-1/2"]
[Round "07"]
[TimeControl "180+1"]
[Date "2022.11.09"]
[WhiteClock "0:00:59"]
[BlackClock "0:00:38"]

1. d4 {[%clk 0:02:55]}  Nf6 {[%clk 0:02:59]} 2. Nf3 {[%clk 0:02:56]}  a6 {[%clk 0:02:54]} 3. Bf4 {[%clk 0:02:55]}  b5 {[%clk 0:02:52]} 4. Nbd2 {[%clk 0:02:54]}  Bb7 {[%clk 0:02:52]} 5. c3 {[%clk 0:02:55]}  g6 {[%clk 0:02:51]} 6. a4 {[%clk 0:02:55]}  c6 {[%clk 0:02:49]} 7. e4 {[%clk 0:02:54]}  Bg7 {[%clk 0:02:48]} 8. h3 {[%clk 0:02:54]}  O-O {[%clk 0:02:46]} 9. Bd3 {[%clk 0:02:54]}  d6 {[%clk 0:02:40]} 10. O-O {[%clk 0:02:53]}  Nbd7 {[%clk 0:02:40]} 11. Qc2 {[%clk 0:02:53]}  Qb6 {[%clk 0:02:34]} 12. Bh2 {[%clk 0:02:45]}  Rae8 {[%clk 0:02:25]} 13. e5 {[%clk 0:02:44]}  Nd5 {[%clk 0:02:24]} 14. exd6 {[%clk 0:02:43]}  e5 {[%clk 0:02:11]} 15. dxe5 {[%clk 0:02:33]}  Nxe5 {[%clk 0:02:10]} 16. Nxe5 {[%clk 0:02:23]}  Bxe5 {[%clk 0:02:10]} 17. Bxe5 {[%clk 0:02:20]}  Rxe5 {[%clk 0:02:11]} 18. axb5 {[%clk 0:02:19]}  cxb5 {[%clk 0:02:10]} 19. Rfe1 {[%clk 0:02:15]}  Qxd6 {[%clk 0:02:09]} 20. Nf3 {[%clk 0:02:13]}  Rxe1+ {[%clk 0:02:03]} 21. Rxe1 {[%clk 0:02:12]}  Nb6 {[%clk 0:01:50]} 22. Be4 {[%clk 0:02:09]}  Bxe4 {[%clk 0:01:43]} 23. Rxe4 {[%clk 0:02:03]}  Rd8 {[%clk 0:01:38]} 24. Rd4 {[%clk 0:02:03]}  Qe7 {[%clk 0:01:38]} 25. Qd3 {[%clk 0:02:00]}  Rxd4 {[%clk 0:01:29]} 26. Qxd4 {[%clk 0:02:01]}  Nc4 {[%clk 0:01:29]} 27. b3 {[%clk 0:02:01]}  Nd6 {[%clk 0:01:26]} 28. g4 {[%clk 0:01:59]}  Qe4 {[%clk 0:01:21]} 29. Qxd6 {[%clk 0:01:38]}  Qxf3 {[%clk 0:01:20]} 30. Qxa6 {[%clk 0:01:38]}  Qxc3 {[%clk 0:01:16]} 31. Qxb5 {[%clk 0:01:37]}  Qxh3 {[%clk 0:01:15]} 32. Qb8+ {[%clk 0:01:35]}  Kg7 {[%clk 0:01:14]} 33. Qe5+ {[%clk 0:01:35]}  Kg8 {[%clk 0:01:13]} 34. Qe8+ {[%clk 0:01:25]}  Kg7 {[%clk 0:01:12]} 35. Qe5+ {[%clk 0:01:24]}  Kf8 {[%clk 0:01:10]} 36. Qb8+ {[%clk 0:01:16]}  Ke7 {[%clk 0:01:09]} 37. Qc7+ {[%clk 0:01:16]}  Ke6 {[%clk 0:01:09]} 38. Qc4+ {[%clk 0:01:16]}  Kd6 {[%clk 0:01:04]} 39. b4 {[%clk 0:01:16]}  Qf3 {[%clk 0:00:53]} 40. b5 {[%clk 0:01:10]}  Qd1+ {[%clk 0:00:51]} 41. Kg2 {[%clk 0:01:10]}  Qd5+ {[%clk 0:00:49]} 42. Qxd5+ {[%clk 0:01:10]}  Kxd5 {[%clk 0:00:50]} 43. Kf3 {[%clk 0:01:11]}  Kc5 {[%clk 0:00:48]} 44. Kf4 {[%clk 0:01:11]}  f6 {[%clk 0:00:46]} 45. g5 {[%clk 0:01:04]}  fxg5+ {[%clk 0:00:44]} 46. Kxg5 {[%clk 0:01:05]}  h5 {[%clk 0:00:43]} 47. f4 {[%clk 0:01:03]}  Kxb5 {[%clk 0:00:39]} 48. f5 {[%clk 0:00:57]}  gxf5 {[%clk 0:00:38]} 49. Kxf5 {[%clk 0:00:57]}  h4 {[%clk 0:00:37]} 50. Kg4 {[%clk 0:00:58]}  h3 {[%clk 0:00:38]} 51. Kxh3 {[%clk 0:00:59]} 1/2-1/2


[Site "https://www.chess.com"]

[Event "Titled Tuesday Blitz November 08 Early 2022"]
[White "Kovalev, Vladislav"]
[Black "Streltsov, Alexey"]
[WhiteFideId "13504398"]
[BlackFideId "24104434"]
[WhiteElo "2556"]
[BlackElo "2583"]
[Result "1-0"]
[Round "07"]
[TimeControl "180+1"]
[Date "2022.11.09"]
[WhiteClock "0:01:13"]
[BlackClock "0:00:13"]

1. e4 {[%clk 0:02:57]}  c6 {[%clk 0:03:00]} 2. Nf3 {[%clk 0:02:57]}  d5 {[%clk 0:03:01]} 3. d3 {[%clk 0:02:58]}  dxe4 {[%clk 0:02:59]} 4. dxe4 {[%clk 0:02:59]}  Qxd1+ {[%clk 0:02:59]} 5. Kxd1 {[%clk 0:03:00]}  Bg4 {[%clk 0:02:59]} 6. Be2 {[%clk 0:03:00]}  Nd7 {[%clk 0:02:57]} 7. Ne1 {[%clk 0:03:00]}  Bxe2+ {[%clk 0:02:57]} 8. Kxe2 {[%clk 0:03:01]}  e5 {[%clk 0:02:57]} 9. Nd2 {[%clk 0:02:55]}  b5 {[%clk 0:02:43]} 10. a4 {[%clk 0:02:55]}  Bc5 {[%clk 0:02:24]} 11. Nd3 {[%clk 0:02:48]}  Ne7 {[%clk 0:02:15]} 12. Nb3 {[%clk 0:02:25]}  Bb6 {[%clk 0:02:01]} 13. Be3 {[%clk 0:02:26]}  O-O {[%clk 0:01:08]} 14. Nbc5 {[%clk 0:02:10]}  Bxc5 {[%clk 0:01:00]} 15. Nxc5 {[%clk 0:02:10]}  Rfd8 {[%clk 0:00:57]} 16. Rhd1 {[%clk 0:02:06]}  Nb6 {[%clk 0:00:50]} 17. Rxd8+ {[%clk 0:01:58]}  Rxd8 {[%clk 0:00:51]} 18. axb5 {[%clk 0:01:59]}  cxb5 {[%clk 0:00:52]} 19. Rxa7 {[%clk 0:01:59]}  Ng6 {[%clk 0:00:48]} 20. Nb7 {[%clk 0:01:51]}  Rd7 {[%clk 0:00:33]} 21. Bxb6 {[%clk 0:01:49]}  Nf4+ {[%clk 0:00:33]} 22. Kf3 {[%clk 0:01:49]}  g5 {[%clk 0:00:33]} 23. Nd8 {[%clk 0:01:29]}  Rd6 {[%clk 0:00:31]} 24. Bc7 {[%clk 0:01:14]}  Rd7 {[%clk 0:00:27]} 25. Ra8 {[%clk 0:01:14]}  Kg7 {[%clk 0:00:13]} 26. Bxe5+ {[%clk 0:01:13]} 1-0


[Site "https://www.chess.com"]

[Event "Titled Tuesday Blitz November 08 Early 2022"]
[White "Kozak, Antoni"]
[Black "Bok, Benjamin"]
[WhiteFideId "21832030"]
[BlackFideId "1017063"]
[WhiteElo "2717"]
[BlackElo "2946"]
[Result "1/2-1/2"]
[Round "07"]
[TimeControl "180+1"]
[Date "2022.11.09"]
[WhiteClock "0:00:07"]
[BlackClock "0:00:01"]

1. Nf3 {[%clk 0:02:53]}  d5 {[%clk 0:02:58]} 2. e3 {[%clk 0:02:49]}  Nf6 {[%clk 0:02:58]} 3. c4 {[%clk 0:02:49]}  e6 {[%clk 0:02:58]} 4. b3 {[%clk 0:02:50]}  c5 {[%clk 0:02:57]} 5. Bb2 {[%clk 0:02:50]}  Nc6 {[%clk 0:02:57]} 6. cxd5 {[%clk 0:02:48]}  exd5 {[%clk 0:02:58]} 7. Be2 {[%clk 0:02:48]}  d4 {[%clk 0:02:45]} 8. exd4 {[%clk 0:02:46]}  cxd4 {[%clk 0:02:44]} 9. Bb5 {[%clk 0:02:45]}  Bc5 {[%clk 0:02:38]} 10. Qe2+ {[%clk 0:02:45]}  Qe7 {[%clk 0:01:47]} 11. Bxd4 {[%clk 0:02:31]}  Qxe2+ {[%clk 0:01:44]} 12. Kxe2 {[%clk 0:02:31]}  Be7 {[%clk 0:01:41]} 13. Be3 {[%clk 0:02:25]}  O-O {[%clk 0:01:39]} 14. Nc3 {[%clk 0:02:25]}  Nb4 {[%clk 0:01:33]} 15. Kf1 {[%clk 0:02:05]}  Rd8 {[%clk 0:01:22]} 16. h3 {[%clk 0:01:55]}  a6 {[%clk 0:01:01]} 17. Be2 {[%clk 0:01:54]}  Bd7 {[%clk 0:00:56]} 18. Ne5 {[%clk 0:01:50]}  Be6 {[%clk 0:00:55]} 19. Bf3 {[%clk 0:01:37]}  Nfd5 {[%clk 0:00:26]} 20. Nxd5 {[%clk 0:01:33]}  Nxd5 {[%clk 0:00:27]} 21. Rc1 {[%clk 0:01:17]}  Ba3 {[%clk 0:00:20]} 22. Re1 {[%clk 0:00:53]}  Rac8 {[%clk 0:00:19]} 23. g4 {[%clk 0:00:51]}  b5 {[%clk 0:00:17]} 24. Kg2 {[%clk 0:00:51]}  f6 {[%clk 0:00:14]} 25. Nd3 {[%clk 0:00:45]}  Nxe3+ {[%clk 0:00:14]} 26. Rxe3 {[%clk 0:00:45]}  Bf7 {[%clk 0:00:14]} 27. Bb7 {[%clk 0:00:33]}  Rc2 {[%clk 0:00:11]} 28. Bxa6 {[%clk 0:00:34]}  Rxd2 {[%clk 0:00:08]} 29. Bxb5 {[%clk 0:00:34]}  Bd5+ {[%clk 0:00:08]} 30. Kh2 {[%clk 0:00:31]}  Bd6+ {[%clk 0:00:07]} 31. Kg1 {[%clk 0:00:19]}  Bxh1 {[%clk 0:00:06]} 32. Kxh1 {[%clk 0:00:19]}  Rxa2 {[%clk 0:00:07]} 33. Kg2 {[%clk 0:00:18]}  Kf8 {[%clk 0:00:07]} 34. Bc4 {[%clk 0:00:19]}  Rd2 {[%clk 0:00:07]} 35. Kf3 {[%clk 0:00:17]}  Re8 {[%clk 0:00:07]} 36. Rxe8+ {[%clk 0:00:15]}  Kxe8 {[%clk 0:00:08]} 37. h4 {[%clk 0:00:15]}  g6 {[%clk 0:00:07]} 38. Bb5+ {[%clk 0:00:12]}  Ke7 {[%clk 0:00:06]} 39. Bc4 {[%clk 0:00:12]}  Rc2 {[%clk 0:00:06]} 40. Ke3 {[%clk 0:00:12]}  f5 {[%clk 0:00:05]} 41. gxf5 {[%clk 0:00:11]}  gxf5 {[%clk 0:00:06]} 42. Kf3 {[%clk 0:00:11]}  Kf6 {[%clk 0:00:06]} 43. Ba6 {[%clk 0:00:09]}  Ra2 {[%clk 0:00:05]} 44. Bc4 {[%clk 0:00:09]}  h6 {[%clk 0:00:05]} 45. Ne1 {[%clk 0:00:08]}  Bc5 {[%clk 0:00:03]} 46. Nd3 {[%clk 0:00:09]}  Bd4 {[%clk 0:00:03]} 47. Kg3 {[%clk 0:00:08]}  Rd2 {[%clk 0:00:03]} 48. Kf3 {[%clk 0:00:08]}  Rc2 {[%clk 0:00:03]} 49. Kg3 {[%clk 0:00:08]}  Rd2 {[%clk 0:00:03]} 50. Kf3 {[%clk 0:00:09]}  Rd1 {[%clk 0:00:04]} 51. Kg2 {[%clk 0:00:08]}  Bb6 {[%clk 0:00:03]} 52. Nf4 {[%clk 0:00:08]}  Bd8 {[%clk 0:00:03]} 53. Nd5+ {[%clk 0:00:07]}  Ke5 {[%clk 0:00:04]} 54. Nb4 {[%clk 0:00:05]}  Bxh4 {[%clk 0:00:02]} 55. Kh3 {[%clk 0:00:03]}  Be7 {[%clk 0:00:02]} 56. Nd3+ {[%clk 0:00:02]}  Kf6 {[%clk 0:00:02]} 57. Nf4 {[%clk 0:00:03]}  Rd2 {[%clk 0:00:01]} 58. Nd5+ {[%clk 0:00:03]}  Kf7 {[%clk 0:00:01]} 59. Ne3+ {[%clk 0:00:03]}  Kg6 {[%clk 0:00:01]} 60. Kg3 {[%clk 0:00:02]}  Bd6+ {[%clk 0:00:01]} 61. Kf3 {[%clk 0:00:02]}  Bc5 {[%clk 0:00:01]} 62. Nd5 {[%clk 0:00:01]}  Rxf2+ {[%clk 0:00:01]} 63. Kg3 {[%clk 0:00:02]}  Kg5 {[%clk 0:00:02]} 64. Nc7 {[%clk 0:00:02]}  f4+ {[%clk 0:00:02]} 65. Kh3 {[%clk 0:00:02]}  Rf3+ {[%clk 0:00:03]} 66. Kg2 {[%clk 0:00:03]}  Rg3+ {[%clk 0:00:03]} 67. Kf1 {[%clk 0:00:03]}  Rg1+ {[%clk 0:00:03]} 68. Ke2 {[%clk 0:00:04]}  Kg4 {[%clk 0:00:04]} 69. Be6+ {[%clk 0:00:03]}  Kg3 {[%clk 0:00:04]} 70. Bd5 {[%clk 0:00:03]}  Be3 {[%clk 0:00:04]} 71. Ne6 {[%clk 0:00:04]}  Rc1 {[%clk 0:00:03]} 72. Ng7 {[%clk 0:00:04]}  Rc2+ {[%clk 0:00:03]} 73. Kd3 {[%clk 0:00:04]}  Rd2+ {[%clk 0:00:04]} 74. Ke4 {[%clk 0:00:05]}  Rxd5 {[%clk 0:00:04]} 75. Kxd5 {[%clk 0:00:05]}  f3 {[%clk 0:00:05]} 76. Ke4 {[%clk 0:00:05]}  Ba7 {[%clk 0:00:05]} 77. Nf5+ {[%clk 0:00:05]}  Kg4 {[%clk 0:00:05]} 78. Nxh6+ {[%clk 0:00:05]}  Kg3 {[%clk 0:00:06]} 79. Nf5+ {[%clk 0:00:06]}  Kg4 {[%clk 0:00:03]} 80. Nh6+ {[%clk 0:00:06]}  Kg3 {[%clk 0:00:04]} 81. Nf5+ {[%clk 0:00:07]}  Kg4 {[%clk 0:00:01]} 82. Nh6+ {[%clk 0:00:07]} 1/2-1/2


[Site "https://www.chess.com"]